fUST/lending_fUST_20240425
["ID","MTS","AMOUNT","RATE_DAILY","PERIOD"]
[323425475,1713976255735,-500.0,0.00017534,2]
[323425476,1713976255744,-500.0,0.00017534,2]
[323425477,1713976255754,-998.74,0.00017534,2]
[323425478,1713976255763,-1175.27,0.00017534,2]
[323425479,1713976255772,-500.0,0.00017534,2]
[323425480,1713976255781,-500.0,0.00017534,2]
[323425481,1713976255792,-500.0,0.00017534,2]
[323425482,1713976255802,-1783.06,0.00017534,2]
[323425483,1713976255811,-500.0,0.00017534,2]
[323425484,1713976255819,-500.0,0.00017534,2]
[323425485,1713976255829,-973.901536,0.00017534,2]
[323425486,1713976255839,-1113.86,0.00017534,2]
[323425487,1713976255849,-500.0,0.00017534,2]
[323425488,1713976255858,-931.24,0.00017534,2]
[323425489,1713976255868,-973.901536,0.00017534,2]
[323425490,1713976255876,-500.0,0.00017534,2]
[323425491,1713976255888,-2419.79,0.00017534,2]
[323425492,1713976255897,-500.0,0.00017534,2]
[323425493,1713976255907,-500.0,0.00017534,2]
[323425494,1713976255915,-500.0,0.00017534,2]
[323425495,1713976255924,-500.0,0.00017534,2]
[323425496,1713976255934,-1098.08,0.00017534,2]
[323425497,1713976255944,-745.36,0.00017534,2]
[323425498,1713976255953,-1008.71,0.00017534,2]
[323425499,1713976255962,-1244.51,0.00017534,2]
[323425500,1713976255971,-500.0,0.00017534,2]
[323425501,1713976255980,-576.55008624,0.00017534,2]
[323425502,1713976255990,-960.3,0.00017534,2]
[323425503,1713976256000,-500.0,0.00017534,2]
[323425504,1713976256009,-939.9,0.00017534,2]
[323425505,1713976256018,-500.0,0.00017534,2]
[323425507,1713976256028,-1480.74,0.00017534,2]
[323425509,1713976256038,-627.1,0.00017534,2]
[323425511,1713976256048,-577.06,0.00017534,2]
[323425513,1713976256057,-500.0,0.00017534,2]
[323425515,1713976256066,-500.0,0.00017534,2]
[323425517,1713976256076,-818.79,0.00017534,2]
[323425519,1713976256085,-1605.56,0.00017534,2]
[323425521,1713976256094,-500.0,0.00017534,2]
[323425523,1713976256103,-500.0,0.00017534,2]
[323425525,1713976256113,-500.0,0.00017534,2]
[323425526,1713976256122,-1362.57,0.00017534,2]
[323425528,1713976256131,-1469.62,0.00017534,2]
[323425530,1713976256146,-2175.21,0.00017534,2]
[323425532,1713976256155,-592.50944585,0.00017534,2]
[323425534,1713976256164,-500.0,0.00017534,2]
[323425536,1713976256173,-522.57,0.00017534,2]
[323425538,1713976256182,-500.0,0.00017534,2]
[323425539,1713976256191,-1035.28,0.00017534,2]
[323425541,1713976256200,-920.26,0.00017534,2]
[323425543,1713976256210,-6939.5,0.00017534,2]
[323425545,1713976256219,-500.0,0.00017534,2]
[323425547,1713976256228,-1960.03,0.00017534,2]
[323425549,1713976256237,-1253.07,0.00017534,2]
[323425551,1713976256246,-4954.95,0.00017534,2]
[323425552,1713976256255,-18770.67,0.00017534,2]
[323425553,1713976256264,-629.51,0.00017534,2]
[323425555,1713976256274,-662.94,0.00017534,2]
[323425557,1713976256283,-292.61961312,0.00017534,2]
[323425559,1713976256292,-2682.8,0.00017534,2]
[323425561,1713976256301,-20599.57,0.00017534,2]
[323425563,1713976256311,-500.0,0.00017534,2]
[323425565,1713976256320,-500.0,0.00017534,2]
[323425567,1713976256329,-7791.77,0.00017534,2]
[323425568,1713976256338,-152.664016,0.00017534,2]
[323425570,1713976256347,-500.0,0.00017534,2]
[323425572,1713976256356,-500.0,0.00017534,2]
[323425574,1713976256366,-152.664016,0.00017534,2]
[323425576,1713976256375,-1902.47,0.00017534,2]
[323425578,1713976256387,-500.0,0.00017534,2]
[323425580,1713976256396,-1239.91,0.00017534,2]
[323425582,1713976256405,-500.0,0.00017534,2]
[323425584,1713976256414,-365.377671,0.00017534,2]
[323425586,1713976256423,-500.0,0.00017534,2]
[323425588,1713976256432,-500.0,0.00017534,2]
[323425590,1713976256441,-744.14,0.00017534,2]
[323425592,1713976256452,-365.377671,0.00017534,2]
[323425594,1713976256462,-500.0,0.00017534,2]
[323425596,1713976256471,-952.39,0.00017534,2]
[323425598,1713976256480,-2426.9,0.00017534,2]
[323425600,1713976256490,-581.58658474,0.00017534,2]
[323425625,1713976256738,-88.32341526,0.00017534,2]
[323425627,1713976256748,-500.0,0.00017534,2]
[323425629,1713976256757,-749.1,0.00017534,2]
[323425631,1713976256766,-1355.56,0.00017534,2]
[323425633,1713976256775,-4313.7305247,0.00017534,2]
[323425635,1713976256792,-1757.91671161,0.00017534,2]
[323425662,1713976257052,-500.0,0.00016438,2]
[323425664,1713976257061,-638.62777397,0.00016712,2]
[323425666,1713976257070,-2864.81526322,0.00017534,2]
[323425668,1713976257081,-3547.07812407,0.00017534,2]
[323425671,1713976257102,-636.64,0.00017534,2]
[323425700,1713976257377,-417.0,0.00014638,2]
[323425702,1713976257388,-5568.5,0.00017534,2]
[323425705,1713976257403,-712.47,0.00017534,2]
[323425726,1713976257596,-315.61648686,0.00016437,2]
[323425728,1713976257605,-2433.49739076,0.00016437,2]
[323425730,1713976257615,-3343.31571122,0.00016437,2]
[323425732,1713976257626,-262.5,0.00016437,2]
[323425797,1713976324996,3041.63,0.00010995,2]
[323425798,1713976383617,-467.782637,0.00018,7]
[323425799,1713976383710,-1000.0,0.0002,7]
[323425800,1713976403000,532.217363,0.00018,7]
[323425807,1713977176982,24900.0,0.00010915,2]
[323425809,1713977364725,250.0,0.00010784,2]
[323425849,1713977432196,-154.86062544,0.00011655,2]
[323425851,1713977432206,-520.05301281,0.00011655,2]
[323425853,1713977432215,-315.61648686,0.00011655,2]
[323425855,1713977432225,-300.0,0.00011656,2]
[323425857,1713977432234,-300.0,0.00011656,2]
[323425859,1713977432245,-7868.0386131,0.00011657,2]
[323425861,1713977432254,-1202.39645166,0.00011657,2]
[323425863,1713977432263,-1678.96711435,0.00011658,2]
[323425865,1713977432274,-1678.96711435,0.00011776,2]
[323425867,1713977432284,-50469.10058142,0.00011776,2]
[323426161,1713977438131,-997.76065003,0.00011656,2]
[323426229,1713977440313,-6570.96628502,0.00011656,2]
[323426230,1713977440369,-3175.80000004,0.00011656,2]
[323426231,1713977441988,-5272.12538553,0.00011656,2]
[323426232,1713977441998,-1217.97448789,0.0001168,2]
[323426298,1713977443331,-0.01310801,0.00011539,2]
[323426504,1713977446353,-2540.87731046,0.00011539,2]
[323426511,1713977446408,-5769.16782793,0.00011539,2]
[323426513,1713977446417,-13408.40332269,0.0001168,2]
[323426515,1713977446426,-164.43618966,0.00011775,2]
[323426517,1713977446435,-226.92289626,0.00011775,2]
[323427453,1713977705030,24900.0,0.00010766,2]
[323427460,1713977882189,366.21686322,0.00010766,2]
[323427472,1713978272761,24900.0,0.00010509,2]
[323427474,1713978300496,17436.60928817,0.000225,30]
[323427476,1713978593727,545.37072415,0.00011391,60]
[323427477,1713978619952,363.58048276,0.00011385,60]
[323427496,1713978632297,-235.6213964,0.00011378,2]
[323427497,1713978632307,-520.05301281,0.00011378,2]
[323427498,1713978632317,-162.04590632,0.00011379,2]
[323427499,1713978632326,-154.86062544,0.00011379,2]
[323427500,1713978632335,-154.86062544,0.00011379,2]
[323427501,1713978632344,-564.5969546,0.00011379,2]
[323427502,1713978632353,-57.96147899,0.00011379,2]
[323427514,1713978637960,302.98373564,0.00011385,60]
[323427607,1713978640552,-164.43618966,0.00011378,2]
[323427608,1713978640563,-1144.43497267,0.00011379,2]
[323427609,1713978640572,-539.92860326,0.0001138,2]
[323427610,1713978640581,-459.7805489,0.0001138,2]
[323427611,1713978640590,-154.86062544,0.00011381,2]
[323427612,1713978640599,-474.86339455,0.00011381,2]
[323427613,1713978640608,-1620.53461599,0.00011381,2]
[323427614,1713978640618,-80.33624485,0.00011382,2]
[323427654,1713978643414,-883.9212987,0.00011377,2]
[323427655,1713978643425,-219.66375515,0.00011382,2]
[323427656,1713978643434,-154.86062544,0.00011383,2]
[323427657,1713978643444,-1057.20199727,0.00011383,2]
[323427658,1713978643455,-259.26636976,0.00011385,2]
[323427659,1713978643464,-7610.06194351,0.00011386,2]
[323427697,1713978677212,157.85452627,0.00011383,60]
[323427698,1713978715202,157.85452627,0.00011382,60]
[323427699,1713978729216,157.85452627,0.0001138,60]
[323427700,1713978738795,24900.0,0.00010384,2]
[323427701,1713978751211,157.85452627,0.0001138,60]
[323427702,1713978769210,157.85452627,0.00011382,60]
[323427703,1713978785216,157.85452627,0.00011379,60]
[323427704,1713978811218,157.85452627,0.00011378,60]
[323427705,1713978836419,157.85452627,0.00011377,60]
[323427706,1713978854424,157.85452627,0.00011376,60]
[323427707,1713978877603,157.85452627,0.00011376,60]
[323427708,1713978895624,239.35715112,0.00011375,60]
[323427709,1713979139140,5000.0,0.00025192,60]
[323427710,1713979185916,5000.0,0.00025192,60]
[323427711,1713979208705,958.0,0.00025192,60]
[323427712,1713979213775,24900.0,0.00010259,2]
[323427713,1713979769482,24900.0,0.00010121,2]
[323427869,1713979840693,-318.46858502,0.00011012,2]
[323427935,1713979843656,-150.04920882,0.00011012,2]
[323427936,1713979843666,-154.86062544,0.00011012,2]
[323427937,1713979843675,-883.9212987,0.00011012,2]
[323427938,1713979843685,-161.7568176,0.00011013,2]
[323427939,1713979843695,-161.75681759,0.00011016,2]
[323427940,1713979843704,-7.68678191,0.00011109,2]
[323427954,1713979967796,36677.58778201,0.00010912,2]
[323427955,1713980035785,729.48680207,0.00010912,2]
[323427956,1713980053679,308.57584323,0.00010912,2]
[323427957,1713980261732,24900.0,0.00010083,2]
[323427958,1713980326750,161.75681759,0.00010974,2]
[323427960,1713980650120,1200.38162123,0.00010956,2]
[323427961,1713980659062,14564.52930822,0.00010976,2]
[323427967,1713980879750,188.84787867,0.00010943,2]
[323427968,1713980919567,1768.04840484,0.00010977,2]
[323427969,1713980940679,24900.0,0.00010043,2]
[323428057,1713981038790,-204.75218996,0.00011015,2]
[323428059,1713981038800,-206.09782636,0.00011016,2]
[323428083,1713981039032,-154.86062544,0.00011017,2]
[323428084,1713981039043,-1620.53461599,0.00011018,2]
[323428086,1713981039052,-212.0994584,0.00011018,2]
[323428088,1713981039061,-16016.65232062,0.00011018,2]
[323428090,1713981039070,-154.86062544,0.00011019,2]
[323428092,1713981039079,-154.86062544,0.00011019,2]
[323428094,1713981039089,-1490.54643083,0.00011019,2]
[323428096,1713981039099,-365.71644,0.0001102,2]
[323428098,1713981039108,-459.7805489,0.0001102,2]
[323428100,1713981039119,-300.0,0.00011022,2]
[323428102,1713981039129,-18802.14665527,0.00011023,2]
[323428105,1713981039142,-1006.82711999,0.00011023,2]
[323428299,1713981338423,1414.43872388,0.00010948,2]
[323428300,1713981377032,161.75681759,0.00010907,2]
[323428301,1713981381996,161.75681759,0.00010948,2]
[323428302,1713981514600,193.63179074,0.00010995,2]
[323428303,1713981517676,154.86062544,0.00010995,2]
[323428304,1713981527952,217.45580382,0.00010995,2]
[323428305,1713981532450,459.7805489,0.00010995,2]
[323428306,1713981537533,304.7637,0.00010995,2]
[323428307,1713981549210,170.62682497,0.00010995,2]
[323428309,1713981601279,24900.0,0.00010016,2]
[323428310,1713981608145,154.86062544,0.00010995,2]
[323428311,1713981611549,154.86062544,0.00010995,2]
[323428312,1713981612781,157.79100369,0.00010995,2]
[323428313,1713981614051,158.7818877,0.00010995,2]
[323428314,1713981728378,44444.0,0.0001094,2]
[323428317,1713981761131,1131.55097908,0.00010922,2]
[323428327,1713981952578,158.7818877,0.00010995,2]
[323428331,1713982002803,154.86062544,0.00010995,2]
[323428332,1713982003018,44444.0,0.00010921,2]
[323428335,1713982184336,905.24078328,0.00010922,2]
[323428336,1713982214450,24900.0,0.00010013,2]
[323428364,1713982231857,-1225.96804454,0.00010996,2]
[323428365,1713982231867,-158.7818877,0.00010997,2]
[323428366,1713982231876,-154.86062544,0.00010997,2]
[323428367,1713982231885,-170.62682497,0.00010999,2]
[323428368,1713982231894,-300.0,0.00011009,2]
[323428369,1713982231903,-300.0,0.00011009,2]
[323428370,1713982231913,-16016.65232062,0.0001101,2]
[323428371,1713982231923,-977.94969331,0.00011013,2]
[323428372,1713982231933,-252.59400697,0.00011018,2]
[323428373,1713982231943,-173.22582113,0.00011018,2]
[323428374,1713982231952,-267.70991316,0.00011018,2]
[323428375,1713982231962,-223.38457154,0.00011018,2]
[323428376,1713982231972,-157.16660029,0.00011018,2]
[323428377,1713982231982,-1016.53700423,0.00011019,2]
[323428378,1713982231996,-181.22021635,0.00011019,2]
[323428379,1713982232007,-26580.84591591,0.0001102,2]
[323428380,1713982232019,-577.90488107,0.0001102,2]
[323428646,1713982372301,157.81173308,0.00010911,2]
[323428647,1713982453116,215.0,0.00023,31]
[323428648,1713982541164,158.7818877,0.00010995,2]
[323428649,1713982544081,154.86062544,0.00010995,2]
[323428650,1713982544992,203.87805929,0.00010995,2]
[323428651,1713982545261,472.01022916,0.00010995,2]
[323428652,1713982571420,16016.65232062,0.00010995,2]
[323428653,1713982578326,7868.0386131,0.00010995,2]
[323428654,1713982578514,549.6120096,0.00010995,2]
[323428655,1713982581781,564.5969546,0.00010995,2]
[323428657,1713982592309,681.09335808,0.00010995,2]
[323428658,1713982606396,724.1926266,0.00010917,2]
[323428659,1713982611668,158.7818877,0.00010995,2]
[323428660,1713982620799,300.0,0.00010995,2]
[323428661,1713982621498,154.86062544,0.00010995,2]
[323428662,1713982622300,300.0,0.00010995,2]
[323428663,1713982632296,410038.6430462,0.00010995,2]
[323428664,1713982637921,16016.65232062,0.00010995,2]
[323428665,1713982680775,300.0,0.00010995,2]
[323428666,1713982681727,300.0,0.00010995,2]
[323428667,1713982718576,16016.65232062,0.00010995,2]
[323428668,1713982740653,300.0,0.00010995,2]
[323428669,1713982743087,300.0,0.00010995,2]
[323428670,1713982789534,203.87805929,0.00010995,2]
[323428671,1713982790969,16016.65232062,0.00010995,2]
[323428672,1713982800771,300.0,0.00010995,2]
[323428673,1713982802209,300.0,0.00010995,2]
[323428674,1713982811430,1000.0,0.00010736,2]
[323428675,1713982811480,500.0,0.00010732,2]
[323428676,1713982824232,300.0,0.00010912,2]
[323428677,1713982844267,7847.6235714,0.00010016,2]
[323428678,1713982860753,300.0,0.00010995,2]
[323428679,1713982862210,300.0,0.00010995,2]
[323428680,1713982875479,16016.65232062,0.00010995,2]
[323428681,1713982880833,681.09335808,0.00010994,2]
[323428682,1713982887579,12194.0,0.00011,5]
[323428683,1713982920718,300.0,0.00010995,2]
[323428684,1713982922632,300.0,0.00010995,2]
[323428685,1713982923812,154.87609912,0.00010995,2]
[323428686,1713982947980,16016.65232062,0.00010995,2]
[323428687,1713982953344,354.84963956,0.00010995,2]
[323428688,1713982959087,17616.66865599,0.00010916,2]
[323428689,1713983043444,1000.0,0.00010878,2]
[323428690,1713983091902,453.0,0.00025192,60]
[323428692,1713983103530,1000.0,0.0001074,2]
[323428693,1713983103586,1000.0,0.00010899,2]
[323428694,1713983171200,500.04719629,0.00010821,2]
[323428695,1713983214473,284.85142799,0.00010821,2]
[323428696,1713983223687,1000.0,0.00010867,2]
[323428697,1713983238462,284.85142799,0.00010821,2]
[323428698,1713983256284,154.87609912,0.000109,2]
[323428699,1713983256897,284.85142799,0.00010821,2]
[323428700,1713983261868,354.84963956,0.000109,2]
[323428701,1713983265732,1000.18942533,0.0002863,120]
[323428702,1713983276487,284.85142799,0.00010821,2]
[323428703,1713983291958,154.87609912,0.000109,2]
[323428704,1713983293102,154.87609912,0.000109,2]
[323428705,1713983300468,284.85142799,0.00010821,2]
[323428706,1713983317133,284.85142799,0.00010821,2]
[323428707,1713983327030,11971.36629885,0.000109,2]
[323428708,1713983343633,1000.0,0.00010696,2]
[323428709,1713983391005,284.85142799,0.00010696,2]
[323428710,1713983402981,284.85142799,0.00010696,2]
[323428744,1713983419002,2543.9623836,9.843e-05,2]
[323428745,1713983426986,284.85142799,0.00010696,2]
[323428751,1713983432026,-354.84963956,0.00010717,2]
[323428752,1713983432036,-154.87609912,0.00010718,2]
[323428753,1713983432045,-2624.41567605,0.00010718,2]
[323428754,1713983432054,-158.7818877,0.00010718,2]
[323428755,1713983432064,-1000.0,0.00010719,2]
[323428756,1713983432073,-1000.0,0.00010756,2]
[323428757,1713983432083,-1000.0,0.00010832,2]
[323428758,1713983432092,-1000.0,0.00010887,2]
[323428759,1713983432101,-59169.7357574,0.00010896,2]
[323428760,1713983432111,-300.0,0.00010897,2]
[323428761,1713983432120,-300.0,0.00010897,2]
[323428762,1713983432129,-7833.45473424,0.00010897,2]
[323428763,1713983432139,-22374.00017495,0.00010898,2]
[323428764,1713983432160,-387664.64287125,0.00010898,2]
[323428765,1713983432170,-254.05667354,0.00010905,2]
[323428766,1713983432179,-170.38964357,0.00010913,2]
[323428767,1713983432188,-19769.42007703,0.00010916,2]
[323428852,1713983438113,-985.42416182,0.00010916,2]
[323428859,1713983438172,-6072.48710516,0.00010916,2]
[323428861,1713983438181,-1000.0,0.00010923,2]
[323428863,1713983438191,-1000.0,0.00010934,2]
[323428865,1713983438201,-1000.0,0.0001094,2]
[323428867,1713983438211,-1000.0,0.00010944,2]
[323428869,1713983438221,-1000.0,0.00010944,2]
[323428871,1713983438231,-1000.0,0.00010945,2]
[323428873,1713983438242,-1000.0,0.0001095,2]
[323428875,1713983438252,-1000.0,0.00010954,2]
[323428877,1713983438262,-151.0,0.00010959,2]
[323428879,1713983438273,-1000.0,0.0001096,2]
[323428881,1713983438284,-1000.0,0.00010963,2]
[323428883,1713983438293,-415.36828714,0.00010996,2]
[323429108,1713983448983,284.85142799,9.843e-05,2]
[323429109,1713983466979,228.01144599,9.843e-05,2]
[323429110,1713983524558,515.77370903,0.00010696,2]
[323429124,1713983583700,1000.0,0.00010612,2]
[323429128,1713983634540,521.62660451,0.000107,2]
[323429129,1713983711190,530.58806472,0.00010667,2]
[323429130,1713983750685,1394.68761216,0.000107,2]
[323429131,1713983771345,469.41193528,0.00010573,2]
[323429133,1713983846495,354.84963956,0.000107,2]
[323429134,1713983852386,154.87609912,0.000107,2]
[323429135,1713983866482,158.7818877,0.000107,2]
[323429136,1713983875484,615.68761408,0.000107,2]
[323429137,1713983883530,1000.0,0.00010534,2]
[323429138,1713983883574,1000.0,0.00010504,2]
[323429139,1713983883626,1000.0,0.00010668,2]
[323429140,1713983883683,1000.0,0.00010434,2]
[323429141,1713983883740,1000.0,0.00010648,2]
[323429142,1713983901567,157.81173308,0.00010603,2]
[323429143,1713983939991,1394.68761216,0.000107,2]
[323429144,1713983949011,158.7818877,0.000107,2]
[323429145,1713984003332,1000.0,0.00010571,2]
[323429146,1713984003393,661.05605935,0.00010485,2]
[323429147,1713984003426,338.94394065,0.00010485,2]
[323429257,1713984638362,-1394.68761216,0.00010577,2]
[323429259,1713984638372,-154.90705577,0.00010578,2]
[323429261,1713984638381,-154.90705577,0.00010578,2]
[323429263,1713984638390,-354.84963956,0.00010579,2]
[323429265,1713984638400,-27.18672445,0.0001058,2]
[323429267,1713984638412,-131.59516325,0.0001058,2]
[323429269,1713984638421,-549.6120096,0.00010593,2]
[323429271,1713984638431,-953.50007226,0.00010593,2]
[323429275,1713984638455,-58.99143948,0.00010593,2]
[323429277,1713984638464,-300.0,0.00010595,2]
[323429279,1713984638473,-300.0,0.00010595,2]
[323429281,1713984638483,-327.5636105,0.00010596,2]
[323429760,1713984645053,-6360.22547496,0.00010596,2]
[323429761,1713984645063,-492.55009128,0.00010599,2]
[323429762,1713984645073,-173.19355555,0.00010696,2]
[323429763,1713984645083,-59169.7357574,0.00010697,2]
[323429764,1713984645093,-410038.6430462,0.00010698,2]
[323429765,1713984645103,-44444.0,0.00010699,2]
[323429766,1713984645112,-1000.0,0.0001081,2]
[323429767,1713984645127,-314.72213697,0.00010856,2]
[323429768,1713984645136,-1000.0,0.00010943,2]
[323429769,1713984645146,-1000.0,0.00010951,2]
[323429770,1713984645155,-2622.72435072,0.00010995,2]
[323429771,1713984645165,-563.94037891,0.00010996,2]
[323429772,1713984645175,-471.05163356,0.00010997,2]
[323429773,1713984645186,-1000.0,0.00010998,2]
[323429774,1713984645196,-194.30609563,0.0001101,2]
[323429775,1713984645205,-323.85993563,0.00011013,2]
[323429776,1713984645215,-155.44112964,0.00011021,2]
[323429777,1713984645225,-1161.89381036,0.00011022,2]
[323429778,1713984645234,-155.57205796,0.00011022,2]
[323429779,1713984645243,-312.13579988,0.00011022,2]
[323429780,1713984645252,-285.12994024,0.00011048,2]
[323429781,1713984645262,-1482.12221106,0.00011074,2]
[323429782,1713984645274,-266.41965904,0.00011074,2]
[323429783,1713984645284,-253.69405585,0.00011074,2]
[323429784,1713984645295,-2073.28306312,0.00011077,2]
[323429785,1713984645305,-155.32689021,0.00011084,2]
[323429786,1713984645316,-456.1791498,0.00011095,2]
[323429787,1713984645325,-882.12594173,0.0001111,2]
[323429788,1713984645335,-407.61230983,0.0001111,2]
[323429789,1713984645344,-156.79692768,0.00011118,2]
[323429790,1713984645353,-327.84255058,0.00011144,2]
[323429791,1713984645363,-216.31330408,0.00011274,2]
[323429792,1713984645377,-492.55009125,0.00011349,2]
[323429793,1713984645387,-154.98907969,0.00011383,2]
[323429794,1713984645397,-257.51040845,0.00011384,2]
[323429795,1713984645406,-539.47696011,0.00011384,2]
[323429796,1713984645415,-242.00608568,0.00011384,2]
[323429797,1713984645424,-1201.59075791,0.00011384,2]
[323429798,1713984645434,-193.43308652,0.00011385,2]
[323429799,1713984645443,-1090.52068603,0.0001151,2]
[323429800,1713984645452,-420.0,0.00011647,2]
[323429801,1713984645462,-420.0,0.00011655,2]
[323429802,1713984645472,-204.27856848,0.00011774,2]
[323429803,1713984645482,-154.93451573,0.00011774,2]
[323429804,1713984645492,-154.92306399,0.00011774,2]
[323429805,1713984645501,-1449.24448289,0.00011775,2]
[323429806,1713984645511,-240.5177946,0.00011776,2]
[323429807,1713984645520,-154.92930371,0.00011776,2]
[323429808,1713984645529,-341.95663076,0.00011776,2]
[323429809,1713984645539,-155.51957365,0.00011776,2]
[323429810,1713984645548,-309.67484219,0.00011776,2]
[323429811,1713984645558,-204.54597996,0.00011776,2]
[323429812,1713984645567,-213.77092791,0.00011776,2]
[323429813,1713984645577,-258.24029722,0.00011776,2]
[323429814,1713984645586,-526.34381075,0.00011776,2]
[323429815,1713984645598,-154.89846529,0.00011776,2]
[323429816,1713984645607,-309.67484219,0.00011776,2]
[323429817,1713984645617,-1484.39666007,0.00011776,2]
[323429818,1713984645632,-8517.77010601,0.00011776,2]
[323429819,1713984645641,-309.62843966,0.00011776,2]
[323429820,1713984645651,-154.89463122,0.00011776,2]
[323429821,1713984645660,-155.51855235,0.00011777,2]
[323429822,1713984645670,-158.71735789,0.00011777,2]
[323429823,1713984645679,-492.55009125,0.00012099,2]
[323429824,1713984645689,-425.8191535,0.00012244,2]
[323429826,1713984645699,-203.6190757,0.00012536,2]
[323429828,1713984645709,-203.6190757,0.00012536,2]
[323429830,1713984645719,-203.6190757,0.00012536,2]
[323429832,1713984645729,-306.6163013,0.0001263,2]
[323429834,1713984645739,-587.0,0.00012805,2]
[323429836,1713984645749,-587.0,0.0001282,2]
[323429851,1713984645918,-492.55009125,0.00012849,2]
[323429854,1713984645929,-1944.62925373,0.000129,2]
[323429857,1713984645940,-1944.62925369,0.00012928,2]
[323429858,1713984645950,-153.0,0.00012978,2]
[323429860,1713984645959,-153.0,0.00012978,2]
[323429861,1713984645969,-306.0,0.00012978,2]
[323429862,1713984645978,-153.0,0.00012978,2]
[323429863,1713984645988,-153.0,0.00012978,2]
[323429864,1713984645997,-306.0,0.00012978,2]
[323429865,1713984646008,-153.0,0.00012978,2]
[323429866,1713984646017,-153.0,0.00012978,2]
[323429867,1713984646027,-153.0,0.00012978,2]
[323429868,1713984646037,-153.0,0.00012978,2]
[323429869,1713984646046,-153.0,0.00012978,2]
[323429870,1713984646055,-265.46820019,0.0001315,7]
[323429871,1713984646065,-2743.40465821,0.00013155,2]
[323429872,1713984646075,-153.0,0.00013424,2]
[323429873,1713984646084,-153.0,0.00013424,2]
[323429874,1713984646094,-153.0,0.00013424,2]
[323429875,1713984646103,-153.0,0.00013424,2]
[323429877,1713984646113,-153.0,0.00013424,2]
[323429878,1713984646125,-200.77286391,0.00013475,2]
[323429879,1713984646134,-2433.49739076,0.00013475,2]
[323429880,1713984646144,-154.8767742,0.00013476,2]
[323429881,1713984646153,-301.07832754,0.00013476,2]
[323429882,1713984646162,-203.54323971,0.00013476,2]
[323429883,1713984646172,-417.314,0.00013481,2]
[323429884,1713984646181,-211.0,0.00013481,2]
[323429885,1713984646190,-150.072,0.00013481,2]
[323429886,1713984646199,-221.778,0.00013481,2]
[323429887,1713984646208,-153.0,0.00013526,2]
[323429888,1713984646218,-492.55009125,0.00013599,2]
[323429889,1713984646227,-203.6190757,0.00013687,2]
[323429890,1713984646236,-521.32314165,0.00013695,2]
[323429891,1713984646245,-174.1146423,0.00013696,2]
[323429892,1713984646254,-1546.46546814,0.00013698,2]
[323429893,1713984646264,-151.0,0.00013699,2]
[323429894,1713984646274,-151.0,0.00013699,2]
[323429895,1713984646283,-151.0,0.00013699,2]
[323429896,1713984646292,-151.0,0.00013699,2]
[323429897,1713984646302,-151.0,0.00013699,2]
[323429898,1713984646313,-151.0,0.00013699,2]
[323429899,1713984646323,-151.0,0.00013699,2]
[323429900,1713984646332,-151.0,0.00013699,2]
[323429901,1713984646341,-218.507235,0.00013699,2]
[323429902,1713984646350,-151.0,0.00013699,2]
[323429903,1713984646360,-1947.810485,0.00013699,2]
[323429904,1713984646369,-151.0,0.00013699,2]
[323429905,1713984646386,-225.968429,0.00013699,2]
[323429906,1713984646395,-225.968429,0.00013699,2]
[323429907,1713984646404,-151.0,0.00013699,2]
[323429908,1713984646414,-151.0,0.00013699,2]
[323429909,1713984646423,-151.0,0.00013699,2]
[323429910,1713984646432,-151.0,0.00013699,2]
[323429911,1713984646442,-812.3,0.00013699,2]
[323429912,1713984646451,-365.377671,0.00013699,2]
[323429913,1713984646460,-365.377671,0.00013699,2]
[323429914,1713984646469,-151.0,0.00013699,2]